Cogmind - Beta 14 @@@ ROGUE MODE // 2024.08.22 @ 15:37:27 Player: THN-L0C Result: Destroyed by Y-64 Sentinel with KE Penetrator Performance ------------- Evolutions (4) 2000 Regions Visited (12) 2400 Robots Destroyed (155) 775 Value Destroyed (6043) 6043 Prototype IDs (31) 620 Alien Tech Used (0) 0 Bonus (4381) 4381 TOTAL SCORE: 16219 Bonus ------- High Alert Combat Kills 2095 Follower Combat Kills 787 Entered Garrisons 400 Used RIF Installer 1000 Aligned with FarCom 300 Friendly Fire -201 Cogmind --------- Core Integrity 0/850 Matter 267/300 Energy 85/100 System Corruption 3% Temperature Cool (9) Movement Core (750) Ox14 Location -6/Lower Caves Parts ------- > --- POWER (1) -------- (None) > --- PROPULSION (4) --- (None) > --- UTILITY (8) ------ High-capacity Storage Unit Relay Coupler [Sentry] (2) Relay Coupler [Specialist] (17) > --- WEAPON (2) ------- Remote Datajack > --- INVENTORY (20) --- Light Angular Momentum Engine Neutrino Core Matter Compressor (250) Authchip [R/Combat] Relay Coupler [Sentry] (27) Relay Coupler [Demolisher] (24) Improved EM Pulse Cannon XL Autogun Array Improved Datajack Blade Saw Fire Trap Peak State ------------ > --- POWER ------------ Light Antimatter Reactor > --- PROPULSION ------- Improved Heavy Treads Improved Heavy Treads > --- UTILITY ---------- High-capacity Storage Unit Armor Integrity Analyzer Improved Kinecellerator Improved Utility Shielding Layered Heavy Armor Plating Relay Coupler [Sentry] Relay Coupler [Specialist] > --- WEAPON ----------- Precision Assault Rifle Advanced Assault Cannon > --- INVENTORY -------- Reinforced Deuterium Engine Light Angular Momentum Engine Improved Heavy Treads Improved Cooling System Compact Matter Pod Hardened Medium Armor Plating Authchip [R/Combat] Relay Coupler [Sentry] Relay Coupler [Demolisher] Disruptor Cannon Gauss Rifle Gauss Rifle XL Autogun Array Missile Launcher Remote Datajack Blade Saw [Rating: 89] Favorites ----------- Power Reinforced Ion Engine Engine Reinforced Ion Engine Power Core Light Nuclear Core Reactor Light Antimatter Reactor Propulsion Light Treads Treads Light Treads Leg VSS Leg Hover Unit Gravmag System Utility High-capacity Storage Unit Device Improved Cooling System Storage High-capacity Storage Unit Processor Improved Targeting Computer Hackware Relay Coupler [Sentry] Protection Improved Medium Armor Plating Weapon Gauss Rifle Energy Gun Pulse Rifle Energy Cannon Cooled Plasma Cannon Ballistic Gun Gauss Rifle Ballistic Cannon Advanced Assault Cannon Launcher Missile Launcher Special Weapon Remote Datajack Slashing Weapon Blade Saw Build | -11 -10 -10 -10 -9 -8 -8 -8 -7 -7 -6 -6 -6 ------- Run | Yrd Mat Min Exi Min Mat Sto Gar Fac Gar Fac Low Low Slots Evolved 8 | . . . . . 4 . . 2 . 2 . . Power . | . . . . . . . . . . . . . Propulsion 2 | . . . . . 2 . . . . . . . Utility 6 | . . . . . 2 . . 2 . 2 . . Weapon . | . . . . . . . . . . . . . Parts Attached 203 | 8 11 3 1 1 14 41 41 9 26 16 18 14 Power 18 | 1 2 . . 1 2 3 1 2 2 2 1 1 Engine 12 | 1 2 . . 1 . 3 1 1 1 1 . 1 Core 5 | . . . . . 2 . . 1 . 1 1 . Reactor 1 | . . . . . . . . . 1 . . . Propulsion 40 | 2 . 2 . . 2 8 15 1 2 . 5 3 Treads 37 | 2 . 2 . . 1 8 15 1 2 . 4 2 Leg 2 | . . . . . 1 . . . . . . 1 Wheel . | . . . . . . . . . . . . . Hover 1 | . . . . . . . . . . . 1 . Flight . | . . . . . . . . . . . . . Utility 55 | 2 3 . 1 . 6 10 13 4 4 5 5 2 Device 18 | 1 . . . . 2 3 6 1 . 3 1 1 Storage 6 | 1 2 . 1 . 1 . . . . 1 . . Processor 5 | . . . . . 2 . . . . 1 2 . Hackware 3 | . . . . . . . . . 3 . . . Protection 23 | . 1 . . . 1 7 7 3 1 . 2 1 Artifact . | . . . . . . . . . . . . . Weapon 90 | 3 6 1 . . 4 20 12 2 18 9 7 8 Energy Gun 4 | . . . . . 2 2 . . . . . . Energy Cannon 4 | . . . . . . 2 1 . . . . 1 Ballistic Gun 37 | 3 5 . . . 1 4 8 2 7 3 2 2 Ballistic Cannon 10 | . . . . . . 4 . . 1 1 1 3 Launcher 22 | . . 1 . . 1 6 3 . 3 4 3 1 Special Weapon 9 | . 1 . . . . 2 . . 4 . 1 1 Impact Weapon . | . . . . . . . . . . . . . Slashing Weapon 4 | . . . . . . . . . 3 1 . . Piercing Weapon . | . . . . . . . . . . . . . Special Melee Weapon . | . . . . . . . . . . . . . Unidentified Prototypes 8 | . . . . . 1 5 . 2 . . . . Parts Lost 45 | . 1 1 . . 3 3 9 . . 5 4 19 Power 5 | . . . . . . 1 . . . 2 1 1 Propulsion 16 | . . 1 . . 1 1 5 . . 1 2 5 Utility 17 | . 1 . . . 2 1 3 . . 2 1 7 Weapon 7 | . . . . . . . 1 . . . . 6 Highest Loss Streak 9 | . 1 1 . . 2 2 4 . . 2 3 9 To Critical Strikes 2 | . . . . . . . . . . 1 . 1 Average Slot Usage (%) 90 | . 90 99 100 100 81 95 98 97 85 72 87 89 Engine 6 | . 14 14 14 14 . 7 9 7 6 . 2 2 Core 1 | . . . . . 8 . . . . 1 2 3 Treads 23 | . 28 27 28 28 17 29 35 30 17 13 16 18 Device 7 | . 2 . . . 16 1 15 10 5 4 8 10 Storage 8 | . 15 14 14 14 9 9 9 7 7 5 6 6 Processor 1 | . . . . . . 3 . . . 2 8 9 Hackware 4 | . . . . . . . . . 5 13 13 13 Protection 14 | . 1 14 14 14 9 21 11 23 25 12 12 7 Ballistic Gun 10 | . 28 14 14 14 5 3 13 15 10 3 5 7 Ballistic Cannon 1 | . . . . . . . . . . 2 6 4 Launcher 3 | . . 13 14 14 7 5 2 . . 3 . . Peak Build Rating 89 | 7 8 10 13 13 29 44 43 47 78 89 82 70 Average Rating 44 | 5 6 9 11 13 25 33 36 43 67 81 69 59 On Entrance 32 | . 7 8 10 13 13 27 42 37 47 78 68 68 Naked Turns . | . . . . . . . . . . . . . Heaviest Build 101 | 13 34 32 32 32 56 71 83 96 96 92 101 81 Greatest Support 150 | 40 40 40 40 40 49 100 92 88 150 150 115 115 Greatest Overweight (x) 22 | . . . . . 1 2 1 1 1 1 1 22 Average Overweight (x) . | . . . . . . . . . . . . . Largest Inventory Capacity 20 | 8 15 15 15 15 20 20 20 20 20 20 20 20 Average Capacity 18 | 7 10 15 15 15 19 20 20 20 20 19 20 20 Most Carried 20 | 2 15 15 15 15 20 20 20 20 20 20 20 20 Average Carried 17 | . 8 14 14 14 18 19 19 19 19 19 18 17 Final Capacity 20 | 8 15 15 15 15 20 20 20 20 20 20 20 20 Final Carried 20 | 2 15 14 15 15 18 20 20 20 20 20 20 14 Class Distribution -------------------- 45% | Bothacker-Mutant 38% | Mutant 11% | Scavenger-Mutant 4% | Commander-Mutant Dominant Class ---------------- Mutant | -10/Materials Mutant | -10/Mines Mutant | -10/Exiles Mutant | -9/Mines Mutant | -8/Materials Mutant | -8/Storage Scavenger-Mutant | -8/Garrison Bothacker-Mutant | -7/Factory Bothacker-Mutant | -7/Garrison Bothacker-Mutant | -6/Factory Bothacker-Mutant | -6/Lower Caves Bothacker-Mutant | -6/Lower Caves Resources | -11 -10 -10 -10 -9 -8 -8 -8 -7 -7 -6 -6 -6 ----------- Run | Yrd Mat Min Exi Min Mat Sto Gar Fac Gar Fac Low Low Matter Collected 5904 | 262 296 211 2 37 262 866 1154 159 702 867 688 398 Remotely . | . . . . . . . . . . . . . Salvage Created 5498 | 108 344 170 . 58 329 835 1484 102 620 639 274 535 Parts 315 | 6 29 12 . 1 19 49 89 7 30 41 13 19 Haulers Intercepted 4 | . 1 . . . . 3 . . . . . . Recyclers Shooed 1 | . . . . . . 1 . . . . . . Parts Field Recycled . | . . . . . . . . . . . . . Retrieved Matter . | . . . . . . . . . . . . . Parts Self-Destructed 26 | . . . . . . . . . . . 14 12 Prevented 1 | . . . . . . . . . . . 1 . Kills | -11 -10 -10 -10 -9 -8 -8 -8 -7 -7 -6 -6 -6 ------- Run | Yrd Mat Min Exi Min Mat Sto Gar Fac Gar Fac Low Low Combat Hostiles Destroyed 136 | . 11 7 . 1 10 16 40 2 8 18 10 13 Guns 72 | . 11 5 . 1 10 1 23 2 7 6 2 4 Cannons 26 | . . . . . . 5 3 . . 4 5 9 AOE 36 | . . 2 . . . 8 14 . 1 8 3 . Classes Destroyed 17 | 2 4 . . . 2 4 3 . 1 1 . . Worker 5 | . . . . . . 3 . . . 2 . . Builder 4 | . 1 . . . . 1 . . . 2 . . Tunneler 1 | 1 . . . . . . . . . . . . Hauler 4 | . 1 . . . . 3 . . . . . . Recycler 1 | 1 . . . . . . . . . . . . Operator 1 | . . . . . . 1 . . . . . . Watcher 2 | . . . . . . 1 1 . . . . . Swarmer 38 | . 6 3 . . 4 3 9 . 1 2 6 4 Cutter 2 | . . . . . . . 2 . . . . . Grunt 52 | . 5 4 . 1 4 6 10 2 5 9 3 3 Brawler 7 | . . . . . 1 1 1 . . 1 1 2 Duelist 3 | . . . . . . . . . 1 2 . . Protector 1 | . . . . . . . . . . 1 . . Sentry 13 | . . . . . 1 3 8 . . . 1 . Specialist 2 | . . . . . . . 2 . . . . . Hunter 8 | . . . . . . 3 3 . 1 1 . . Programmer 7 | . . . . . . . 5 . . 2 . . Thug 4 | . . . . . . . . . . . . 4 Best Kill Streak 8 | 2 3 3 . 1 3 8 7 2 3 6 4 3 Combat Bots Only 7 | . 3 3 . 1 3 4 7 2 3 4 4 3 Max Kills in Single Turn 7 | 1 2 2 . 1 2 7 4 1 1 3 3 1 Gunslinging 1 | . . . . . 1 . 1 . . . . . Exploded 4 | . . 1 . . . 3 4 . 1 3 3 . Melee . | . . . . . . . . . . . . . Uniques/NPCs Destroyed . | . . . . . . . . . . . . . Combat | -11 -10 -10 -10 -9 -8 -8 -8 -7 -7 -6 -6 -6 -------- Run | Yrd Mat Min Exi Min Mat Sto Gar Fac Gar Fac Low Low Hostile Shots Fired 882 | . 62 27 . . 62 51 238 12 80 140 77 133 Missed 216 | . 17 5 . . 16 14 59 3 14 41 21 26 Damage Taken 10976 | . 519 282 . . 562 664 2772 145 676 1924 1067 2365 Core 1390 | . 47 40 . . 91 74 254 . 14 114 87 669 Absorbed by Shields . | . . . . . . . . . . . . . Redirected to Shielding 184 | . . 8 . . 16 56 . . 20 84 . . Ignored by Resistances 135 | . . . . . . 20 10 . 105 . . . Regen/Repaired (Parts) 399 | . . . . . . . . . . 399 . . Core Remaining (%) 71 | 100 . . . 65 . . 23 . 98 . . . Volleys Fired 493 | 2 43 22 . 5 33 47 124 7 72 83 18 37 Largest 2 | 2 2 2 . 1 2 2 2 2 2 2 2 2 Hottest 141 | 40 100 53 . 20 86 141 105 56 64 84 84 134 Shots Fired 768 | 4 85 23 . 5 61 65 185 14 90 128 35 73 Gun 554 | 4 84 19 . 5 59 19 153 14 75 67 13 42 Cannon 137 | . . . . . . 17 22 . 2 48 17 31 Launcher 61 | . . 4 . . 2 24 10 . 4 13 4 . Special 16 | . 1 . . . . 5 . . 9 . 1 . Kinetic 630 | 4 84 19 . 5 33 20 157 14 77 115 30 72 Thermal 66 | . 1 . . . 26 21 18 . . . . . Explosive 56 | . . 4 . . 2 19 10 . 4 13 4 . Electromagnetic 6 | . . . . . . 5 . . . . . 1 Robot Hit Streak 25 | 3 11 12 . 2 25 5 9 6 12 13 8 17 Robot Miss Streak 7 | . 5 1 . 1 3 1 7 1 1 4 4 5 Penetration Max 1 | . . . . . . . 1 . . . . 1 Secondary Targets 6 | . 1 . . . 2 . 3 . . . . . Max Gunslinging Chain 1 | . 1 . . . 1 . 1 . . . . . Shots Hit Robots 483 | 3 51 15 . 3 44 27 103 11 62 88 20 56 Core Hits 300 | 3 20 13 . 1 17 37 66 4 27 61 15 36 Critical Kills 3 | . . . . . . 2 1 . . . . . Critical Parts Destroyed 4 | . . . . . . . 1 . 1 . 1 1 Critical Strikes 15 | . . . . . 3 2 2 . 3 1 2 2 Burn 3 | . . . . . 3 . . . . . . . Meltdown 2 | . . . . . . 2 . . . . . . Destroy 5 | . . . . . . . 2 . 1 . 1 1 Blast 3 | . . . . . . . . . . 1 1 1 Sever 2 | . . . . . . . . . 2 . . . Melee Attacks 40 | . . . . . . . . . 35 5 . . Impact . | . . . . . . . . . . . . . Slashing 40 | . . . . . . . . . 35 5 . . Piercing . | . . . . . . . . . . . . . Sneak Attacks . | . . . . . . . . . . . . . Combat Hostiles . | . . . . . . . . . . . . . Follow-up Attacks . | . . . . . . . . . . . . . Damage Inflicted 16347 | 37 718 400 . 47 741 1673 3727 221 1528 4902 911 1442 Guns 6589 | 37 718 188 . 39 702 176 2051 221 463 1154 128 712 Cannons 2964 | . . . . . . 351 576 . . 1046 261 730 Explosions 5814 | . . 211 . . 39 1121 1100 . 119 2702 522 . Melee 946 | . . . . . . . . . 946 . . . Ramming 34 | . . 1 . 8 . 25 . . . . . . Kinetic 8337 | 37 718 188 . 39 358 184 2113 221 463 2200 389 1427 Thermal 1719 | . . . . . 344 343 514 . . 518 . . Explosive 5192 | . . 211 . . 39 1017 1100 . 119 2184 522 . Electromagnetic 119 | . . . . . . 104 . . . . . 15 Impact . | . . . . . . . . . . . . . Slashing 946 | . . . . . . . . . 946 . . . Piercing . | . . . . . . . . . . . . . Highest Corruption 3 | . . . . . 2 3 3 . 1 3 3 3 Average Corruption 2 | . . . . . 2 2 2 . 1 2 3 3 Corruption Purged 3 | . . . . . . 3 . . . . . . Corruption Blocked . | . . . . . . . . . . . . . Effects 101 | . . . . . 4 9 38 . 15 8 22 5 Message Errors 31 | . . . . . 2 4 8 . 7 3 5 2 Matter Fused 26 | . . . . . 2 1 11 . 2 2 7 1 Heat Flow Errors 13 | . . . . . . 1 4 . 3 2 2 1 Energy Discharges 11 | . . . . . . 2 4 . 2 1 1 1 Parts Rejected 2 | . . . . . . . 2 . . . . . Parts Fused 1 | . . . . . . . 1 . . . . . Data Loss (minor) 8 | . . . . . . 1 3 . 1 . 3 . Data Loss (major) 4 | . . . . . . . 2 . . . 2 . Misfires 3 | . . . . . . . 2 . . . 1 . Alerts 1 | . . . . . . . . . . . 1 . Weapon Failures 1 | . . . . . . . 1 . . . . . Overload Shots 5 | . . . . . . 1 4 . . . . . Effects 1 | . . . . . . . 1 . . . . . Energy Bleed 1 | . . . . . . . 1 . . . . . Overflow Damage 361 | . . . . . . 62 31 . . 257 . 11 Projectiles 52 | . . . . . . . 16 . . 25 . 11 Explosions 303 | . . . . . . 56 15 . . 232 . . Melee 6 | . . . . . . 6 . . . . . . Knockbacks 22 | . . . . . . . 1 . . 8 1 12 Impact . | . . . . . . . . . . . . . Kinetic 21 | . . . . . . . 1 . . 8 1 11 Secondary 1 | . . . . . . . . . . . . 1 Self-Inflicted Damage 193 | . . . . . . 112 . . 15 33 33 . Shots 8 | . . . . . . 5 . . 1 1 1 . Rammed 3 | . . 1 . 1 . 1 . . . . . . Targets Rammed 4 | . . 1 . 1 . 2 . . . . . . Kicked . | . . . . . . . . . . . . . Crushed 1 | . . . . . . 1 . . . . . . Highest Temperature 454 | . 20 5 . . 195 230 454 . 229 390 314 414 Average Temperature 105 | . 8 3 . . 69 35 184 . 108 84 135 113 Received Heat Transfer 3127 | . 153 138 . . 180 189 549 72 258 586 345 657 Effects 8 | . . . . . . . 5 . 1 1 . 1 Shutdowns 2 | . . . . . . . 1 . . . . 1 Energy Bleed 1 | . . . . . . . . . . 1 . . Interference 1 | . . . . . . . . . 1 . . . Short Circuit 2 | . . . . . . . 2 . . . . . Damage (major) 2 | . . . . . . . 2 . . . . . Siege Activations . | . . . . . . . . . . . . . Robots Corrupted . | . . . . . . . . . . . . . Combat Hostiles . | . . . . . . . . . . . . . Parts Fried . | . . . . . . . . . . . . . Impact Corruptions 1 | . . . . . . 1 . . . . . . Robots Melted 2 | . . . . . . 2 . . . . . . Combat Hostiles 2 | . . . . . . 2 . . . . . . Parts Melted 12 | . . . . . . 10 1 . . 1 . . Heat Transferred 2334 | . . . . . 962 517 505 . . 350 . . Parts Sabotaged . | . . . . . . . . . . . . . Parts Stolen . | . . . . . . . . . . . . . Parts Stripped . | . . . . . . . . . . . . . Power Chain Reactions 2 | . . . . . . 2 . . . . . . Alert | -11 -10 -10 -10 -9 -8 -8 -8 -7 -7 -6 -6 -6 ------- Run | Yrd Mat Min Exi Min Mat Sto Gar Fac Gar Fac Low Low Peak Influence 2238 | 10 248 161 . 30 261 790 2146 1192 2238 1697 . . Initial 1174 | . 6 30 . . . 109 440 1126 694 1174 . . Average 848 | 5 83 79 . 11 30 359 1249 1095 1407 1329 . . Maximum Alert Level 5 | . 1 . . . 1 3 5 4 5 5 . . Low Security (%) 30 | 100 96 100 . 100 97 22 . . . . . . Level 1 4 | . 3 . . . 2 40 . . . . . . Level 2 7 | . . . . . . 32 15 . 3 . . . Level 3 17 | . . . . . . 4 29 31 33 12 . . Level 4 22 | . . . . . . . 22 68 29 64 . . Level 5 17 | . . . . . . . 32 . 33 23 . . High Security . | . . . . . . . . . . . . . Max Security . | . . . . . . . . . . . . . Squads Dispatched 23 | . 3 . . 1 . 6 . 2 1 9 . 1 Investigation 7 | . 2 . . . . 4 . 1 . . . . Extermination 2 | . . . . . . . . 1 . 1 . . Reinforcement 4 | . 1 . . . . 1 . . . 2 . . Assault 9 | . . . . 1 . . . . 1 6 . 1 Garrison 1 | . . . . . . 1 . . . . . . Intercept . | . . . . . . . . . . . . . Searches Triggered . | . . . . . . . . . . . . . Construction Impeded 1 | . . . . . . . . . . 1 . . Haulers Reinforced . | . . . . . . . . . . . . . Active Scanning Responses . | . . . . . . . . . . . . . Cargo Convoy Interrupts . | . . . . . . . . . . . . . Stealth | -11 -10 -10 -10 -9 -8 -8 -8 -7 -7 -6 -6 -6 --------- Run | Yrd Mat Min Exi Min Mat Sto Gar Fac Gar Fac Low Low Distress Signals 8 | . . . . . 4 2 . . . 2 . . Communications Jammed . | . . . . . . . . . . . . . Distress Signals . | . . . . . . . . . . . . . Times Spotted 213 | . 21 7 . 1 23 26 42 3 11 41 14 24 Peak Tracking Total 10 | . 3 3 . 1 8 7 7 2 3 8 4 10 Tactical Retreats 5 | . 3 . . . 1 . . . 1 . . . Traps | -11 -10 -10 -10 -9 -8 -8 -8 -7 -7 -6 -6 -6 ------- Run | Yrd Mat Min Exi Min Mat Sto Gar Fac Gar Fac Low Low Traps Triggered 14 | . 3 . . . . 3 5 2 1 . . . Indirectly . | . . . . . . . . . . . . . Trap Hack Attempts . | . . . . . . . . . . . . . Triggered . | . . . . . . . . . . . . . Disarmed . | . . . . . . . . . . . . . Reprogrammed . | . . . . . . . . . . . . . Reused . | . . . . . . . . . . . . . Traps Extracted . | . . . . . . . . . . . . . Installed . | . . . . . . . . . . . . . Triggered 1 | . . . . . . . . . . . 1 . Most Traps Carried 1 | . . . . . . . . . . . 1 1 Machines | -11 -10 -10 -10 -9 -8 -8 -8 -7 -7 -6 -6 -6 ---------- Run | Yrd Mat Min Exi Min Mat Sto Gar Fac Gar Fac Low Low Machines Disabled 24 | . . 1 . . 2 6 3 . . 12 . . Max in Single Turn 10 | . . 1 . . . 1 1 . . 10 . . Garrison Relay 3 | . . . . . . . 2 . 1 . . . Machines Repaired . | . . . . . . . . . . . . . Machines Dismantled . | . . . . . . . . . . . . . Machines Sabotaged . | . . . . . . . . . . . . . Overloaded Fab Kills . | . . . . . . . . . . . . . Hacking | -11 -10 -10 -10 -9 -8 -8 -8 -7 -7 -6 -6 -6 --------- Run | Yrd Mat Min Exi Min Mat Sto Gar Fac Gar Fac Low Low Machines Accessed 33 | . 3 . 1 . 4 14 3 2 2 4 . . Terminals 26 | . 3 . . . 3 13 3 1 2 1 . . Fabricators . | . . . . . . . . . . . . . Repair Stations 2 | . . . . . . . . . . 2 . . Recycling Units 1 | . . . . . 1 . . . . . . . Scanalyzers 1 | . . . . . . . . . . 1 . . Garrison Access 2 | . . . . . . 1 . 1 . . . . Total Hacks 70 | . 9 . 1 . 5 29 5 3 5 13 . . Successful 31 | . 4 . 1 . 4 12 2 2 . 6 . . Failed 39 | . 5 . . . 1 17 3 1 5 7 . . Catastrophic 7 | . . . . . 1 4 1 . . 1 . . Database Lockouts . | . . . . . . . . . . . . . Manual 24 | . 8 . 1 . 3 10 2 . . . . . Terminals 59 | . 9 . . . 4 28 5 2 5 6 . . Fabricators . | . . . . . . . . . . . . . Repair Stations 5 | . . . . . . . . . . 5 . . Recycling Units 1 | . . . . . 1 . . . . . . . Scanalyzers 2 | . . . . . . . . . . 2 . . Garrison Access 2 | . . . . . . 1 . 1 . . . . Terminal Hacks 16 | . 2 . 1 . . 7 2 1 . 3 . . Record 1 | . . . . . . . . . . 1 . . Robot Schematic 1 | . 1 . . . . . . . . . . . Robot Analysis 1 | . 1 . . . . . . . . . . . Open Door 6 | . . . . . . 6 . . . . . . Branch Access Points 1 | . . . . . . . . 1 . . . . Emergency Access Points 2 | . . . . . . . 1 . . 1 . . Zone Layout 2 | . . . . . . 1 . . . 1 . . Patrol Navigation 1 | . . . . . . . 1 . . . . . Derelict Proto ID Bank 1 | . . . 1 . . . . . . . . . Fabricator Hacks . | . . . . . . . . . . . . . Repair Station Hacks 2 | . . . . . . . . . . 2 . . Scan Component 1 | . . . . . . . . . . 1 . . Repair 1 | . . . . . . . . . . 1 . . Recycling Unit Hacks 1 | . . . . . 1 . . . . . . . Report Inventory 1 | . . . . . 1 . . . . . . . Scanalyzer 1 | . . . . . . . . . . 1 . . Insert Component 1 | . . . . . . . . . . 1 . . Garrison Access Hacks 2 | . . . . . . 1 . 1 . . . . Unlock Access 2 | . . . . . . 1 . 1 . . . . Unauthorized Hacks 9 | . 2 . . . 3 4 . . . . . . Terminals 9 | . 2 . . . 3 4 . . . . . . Assimilate 2 | . . . . . 2 . . . . . . . Botnet 7 | . 2 . . . 1 4 . . . . . . Fabricators . | . . . . . . . . . . . . . Repair Stations . | . . . . . . . . . . . . . Recycling Units . | . . . . . . . . . . . . . Scanalyzers . | . . . . . . . . . . . . . Garrison Access . | . . . . . . . . . . . . . Data Cores Recovered 1 | . . . . . . 1 . . . . . . Used 1 | . . . . . . 1 . . . . . . Hacking Detections 26 | . 3 . . . 2 11 2 2 2 4 . . Full Trace Events 4 | . 1 . . . . 3 . . . . . . Feedback Events . | . . . . . . . . . . . . . Feedback Blocked . | . . . . . . . . . . . . . Robot Schematics Acquired 1 | . 1 . . . . . . . . . . . Robots Built . | . . . . . . . . . . . . . Authchips . | . . . . . . . . . . . . . Time . | . . . . . . . . . . . . . Total Robot Build Rating . | . . . . . . . . . . . . . Part Schematics Acquired . | . . . . . . . . . . . . . Parts Built . | . . . . . . . . . . . . . Authchips . | . . . . . . . . . . . . . Time . | . . . . . . . . . . . . . Total Part Build Rating . | . . . . . . . . . . . . . Parts Repaired 1 | . . . . . . . . . . 1 . . Time 26 | . . . . . . . . . . 26 . . Parts Recycled . | . . . . . . . . . . . . . Recycled Matter . | . . . . . . . . . . . . . Retrieved Matter . | . . . . . . . . . . . . . Retrieved Components . | . . . . . . . . . . . . . Parts Scanalyzed 1 | . . . . . . . . . . 1 . . Part Schematics Acquired . | . . . . . . . . . . . . . Parts Damaged . | . . . . . . . . . . . . . Bothacking | -11 -10 -10 -10 -9 -8 -8 -8 -7 -7 -6 -6 -6 ------------ Run | Yrd Mat Min Exi Min Mat Sto Gar Fac Gar Fac Low Low Used RIF Installer 2 | . . . . . . . 1 . 1 . . . Signal Jammer 1 | . . . . . . . . . 1 . . . Robots Hacked 5 | . . . . . . . . . 4 . 1 . Non-combat . | . . . . . . . . . . . . . Combat 5 | . . . . . . . . . 4 . 1 . Robot Hacks Applied 6 | . . . . . . . . . 5 . 1 . find_shortcuts 1 | . . . . . . . . . 1 . . . disable_weapons 1 | . . . . . . . . . 1 . . . overwrite_iff 1 | . . . . . . . . . . . 1 . formatsys_high 3 | . . . . . . . . . 3 . . . Relay Couplers Released 12 | . . . . . . . 9 . 3 . . . Machine Destruction 12 | . . . . . . . 9 . 3 . . . Attached 3 | . . . . . . . . . 3 . . . Fabnet Peak Effective % . | . . . . . . . . . . . . . Robots Rewired 5 | . . . . . . . 5 . . . . . Allies Hacked . | . . . . . . . . . . . . . Hacks Repelled . | . . . . . . . . . . . . . Allies | -11 -10 -10 -10 -9 -8 -8 -8 -7 -7 -6 -6 -6 -------- Run | Yrd Mat Min Exi Min Mat Sto Gar Fac Gar Fac Low Low Total Allies 21 | . . . . 1 1 10 5 . 3 . 1 . Largest Group 10 | . . . . 1 2 10 5 . 3 3 1 . Highest-Rated Group 173 | . . . . 31 41 173 81 . 104 104 32 . Highest-Rated Ally 40 | . . . . 31 31 29 18 . 40 40 32 . Total Orders 2 | . . . . . . . . . 2 . . . STAY 1 | . . . . . . . . . 1 . . . FOLLOW 1 | . . . . . . . . . 1 . . . Ally Attacks 164 | . . . . . 10 97 7 . 2 45 3 . Total Damage 2706 | . . . . . 123 1178 69 . 52 1194 90 . Kills 31 | . . . . . 1 12 3 . 1 12 2 . Allies Corrupted . | . . . . . . . . . . . . . Allies Melted . | . . . . . . . . . . . . . Intel | -11 -10 -10 -10 -9 -8 -8 -8 -7 -7 -6 -6 -6 ------- Run | Yrd Mat Min Exi Min Mat Sto Gar Fac Gar Fac Low Low Robot Analysis Total 1 | . 1 . . . . . . . . . . . Derelict Logs Recovered 5 | . . 1 . 2 . . . . . . 2 . Drone Launches . | . . . . . . . . . . . . . Drone Recoveries . | . . . . . . . . . . . . . Exploration | -11 -10 -10 -10 -9 -8 -8 -8 -7 -7 -6 -6 -6 ------------- Run | Yrd Mat Min Exi Min Mat Sto Gar Fac Gar Fac Low Low Turns Passed 14208 | 89 1113 636 481 463 1053 1254 2657 582 2437 1457 1573 413 Spaces Moved 7026 | 45 558 359 298 278 383 589 1387 227 1236 707 820 139 Core 3 | 2 . . . . . . . . . . . 1 Treads 7023 | 43 558 359 298 278 383 589 1387 227 1236 707 820 138 Legs . | . . . . . . . . . . . . . Wheels . | . . . . . . . . . . . . . Hover . | . . . . . . . . . . . . . Flight . | . . . . . . . . . . . . . Fastest Speed 50 | 50 160 160 160 160 160 145 145 160 160 160 160 160 Average Speed 171 | 155 160 160 160 160 234 169 157 238 166 160 179 196 Slowest Speed 1150 | 160 160 160 160 160 240 320 240 240 240 240 240 1150 Overloaded Moves . | . . . . . . . . . . . . . Propulsion Burnouts . | . . . . . . . . . . . . . Robots Hopped 2 | . . . . . . 2 . . . . . . Cave-ins Triggered . | . . . . . . . . . . . . . Exploration Rate (%) 53 | 5 74 70 70 56 27 88 97 9 80 18 90 15 Regions Visited 12 Branch Regions 6 Pre-discovered Areas . | . . . . . . . . . . . . . Known Exits Taken 4 | . . . . . 1 1 . 1 . . 1 . Unknown Exits Taken 6 | 1 1 1 1 1 . . . . . 1 . . Scrap Searched 8 | . . 1 . 2 . . . . . . 4 1 Spaces Dug 49 | . 1 13 . . . 7 12 . 13 3 . . Terrain Destroyed 469 | . 1 41 . . 30 131 66 . 41 121 35 3 Melee . | . . . . . . . . . . . . . Projectile 61 | . 1 . . . . 5 24 . 9 16 3 3 AOE 407 | . . 41 . . 30 126 41 . 32 105 32 . Terrain Rammed . | . . . . . . . . . . . . . Walls Destroyed . | . . . . . . . . . . . . . Machines Disabled . | . . . . . . . . . . . . . Actions | -11 -10 -10 -10 -9 -8 -8 -8 -7 -7 -6 -6 -6 --------- Run | Yrd Mat Min Exi Min Mat Sto Gar Fac Gar Fac Low Low Total 8353 | 56 694 399 305 292 475 766 1685 255 1450 890 883 203 Wait 302 | 1 56 11 . 3 31 34 16 5 61 57 17 10 Move 7010 | 44 557 358 297 277 382 586 1385 226 1234 706 819 139 Hop 1 | . . . . . . 1 . . . . . . Pick Up 124 | 1 16 2 2 2 9 25 28 2 7 20 7 3 Fast Attach 42 | 7 2 . . . 4 12 2 1 3 3 5 3 Attach 35 | . 1 2 . . 2 3 10 1 . 4 3 9 Detach 3 | . 2 . . . . . . . . 1 . . Swap 126 | 1 8 1 1 1 8 26 29 7 23 9 10 2 Drop 113 | . 9 2 5 3 6 30 33 4 15 2 4 . Fire 493 | 2 43 22 . 5 33 47 124 7 72 83 18 37 Melee 40 | . . . . . . . . . 35 5 . . Ram . | . . . . . . . . . . . . . Kick . | . . . . . . . . . . . . . Crush 4 | . . 1 . 1 . 2 . . . . . . Escape Stasis 2 | . . . . . . . . 2 . . . . Rewire 58 | . . . . . . . 58 . . . . . Trap . | . . . . . . . . . . . . . Miscellaneous . | . . . . . . . . . . . . . Route ------- -11/Scrapyard -10/Materials (discovered 3 exits: [*Mat x2] / [*Min]) -10/Mines (discovered 2 exits: [*Mat] / *Exi) -10/Exiles (discovered 2 exits: [*Min x2]) -9/Mines -8/Materials -8/Storage (discovered 2 exits: [Rec] / Gar) -8/Garrison (discovered 3 exits: *Fac x3) -7/Factory (discovered 3 exits: Low x2 / Gar) -7/Garrison (discovered 3 exits: *Fac x3) -6/Factory (discovered 2 exits: [*Low x2]) -6/Lower Caves -6/Lower Caves History --------- Turn | Location | Event 23 | -11/Scrapyard | Discovered new exit (range 16) 90 | -11/Scrapyard | Entered Materials 300 | -10/Materials | Build established: Mutant 363 | -10/Materials | Discovered new exit (range 5) 579 | -10/Materials | Discovered new exit (range 8) 801 | -10/Materials | Discovered new exit (range 14) 1203 | -10/Materials | Entered Mines 1225 | -10/Mines | Received a Rocket Launcher from a helpful Derelict 1414 | -10/Mines | Found a damaged Exp. Sensor Array with a note attached 1419 | -10/Mines | Found Prototype Device 1704 | -10/Mines | Discovered new exit (range 5) 1831 | -10/Mines | Deemed a non-threat by the Exiles lab entrance 1833 | -10/Mines | Discovered new exit (range 5) 1839 | -10/Mines | Entered Exiles 1865 | -10/Exiles | Discovered new exit (range 15) 1884 | -10/Exiles | Met 8R-AWN 1908 | -10/Exiles | Met EX-HEX 1953 | -10/Exiles | Met EX-BIN 1972 | -10/Exiles | Aligned with FarCom system 1974 | -10/Exiles | Given EX-Vault access code 2012 | -10/Exiles | Opened EX-Vault 2023 | -10/Exiles | Found XL Autogun Array 2058 | -10/Exiles | Warned to stay clear of 0b10 Research branches 2149 | -10/Exiles | Met EX-DEC 2304 | -10/Exiles | Discovered new exit (range 11) 2320 | -10/Exiles | Left Exiles lab with XL Autogun Array 2320 | -10/Exiles | Entered Mines 2369 | -9/Mines | Met a Derelict bent on vengeance 2511 | -9/Mines | Learned Materials terminal intel 2718 | -9/Mines | Met a Derelict testing a Signal Generator 2725 | -9/Mines | Discovered new exit (range 8) 2732 | -9/Mines | Found Signal Generator 2783 | -9/Mines | Entered Materials 2783 | -8/Materials | Accompanied by 1 ally 2783 | -8/Materials | Evolved 4 slots: Propulsion x2, Utility x2 2784 | -8/Materials | Identified exit to Storage 2785 | -8/Materials | Loaded intel: 12 terminal locations 3836 | -8/Materials | Entered Storage 4107 | -8/Storage | Discovered new exit (range 17) 4126 | -8/Storage | Assisted by bots powering up and referring to "LRC-V3" 4470 | -8/Storage | Build established: Commander-Mutant 4656 | -8/Storage | Lost 3 allies 4914 | -8/Storage | Garrison activated, responded to threat 5070 | -8/Storage | Build established: Mutant 5090 | -8/Storage | Identified exit to Garrison 5090 | -8/Storage | Entered Garrison 5277 | -8/Garrison | Triggered checkpoint 5278 | -8/Garrison | Triggered checkpoint 5335 | -8/Garrison | Lost 3 allies 5532 | -8/Garrison | Core integrity fell below 50% 5553 | -8/Garrison | Destroyed 7 combat bots 5559 | -8/Garrison | Lost 4 parts (3n1u) 5781 | -8/Garrison | Discovered new exit (range 15) 5896 | -8/Garrison | Triggered checkpoint 5967 | -8/Garrison | Triggered checkpoint 6126 | -8/Garrison | Triggered checkpoint 6135 | -8/Garrison | Discovered new exit (range 15) 6364 | -8/Garrison | Triggered checkpoint 6428 | -8/Garrison | Build established: Scavenger-Mutant 6472 | -8/Garrison | Triggered checkpoint 6560 | -8/Garrison | Triggered checkpoint 6564 | -8/Garrison | Garrison Relay disabled 6568 | -8/Garrison | Triggered checkpoint 6574 | -8/Garrison | Garrison Relay disabled 6920 | -8/Garrison | Installed Relay Interface Framework 7204 | -8/Garrison | Discovered new exit (range 10) 7230 | -8/Garrison | Triggered checkpoint 7747 | -8/Garrison | Entered Factory 7747 | -7/Factory | Evolved 2 slots: Utility x2 7748 | -7/Factory | Identified exit to Lower Caves 7909 | -7/Factory | Build established: Bothacker-Mutant 8317 | -7/Factory | Identified exit to Garrison 8329 | -7/Factory | Entered Garrison 8417 | -7/Garrison | Warlord forces raided the area 8419 | -7/Garrison | Triggered checkpoint 8437 | -7/Garrison | Triggered checkpoint 8559 | -7/Garrison | Triggered checkpoint 8607 | -7/Garrison | Triggered checkpoint 8681 | -7/Garrison | Triggered checkpoint 8763 | -7/Garrison | Triggered checkpoint 8957 | -7/Garrison | Triggered checkpoint 8979 | -7/Garrison | Triggered checkpoint 9005 | -7/Garrison | Triggered checkpoint 9074 | -7/Garrison | Discovered new exit (range 15) 9141 | -7/Garrison | Triggered checkpoint 9159 | -7/Garrison | Expanded RIF knowledge: Signal Jamming 9439 | -7/Garrison | Triggered checkpoint 9532 | -7/Garrison | Discovered new exit (range 13) 10103 | -7/Garrison | Discovered new exit (range 12) 10766 | -7/Garrison | Entered Factory 10766 | -6/Factory | Accompanied by 3 allies 10766 | -6/Factory | Evolved 2 slots: Utility x2 10982 | -6/Factory | Discovered new exit (range 16) 11116 | -6/Factory | First assault squad dispatched 11140 | -6/Factory | Repaired Hcp. Storage Unit 11697 | -6/Factory | Lost 3 allies 11972 | -6/Factory | Discovered new exit (range 7) 12223 | -6/Factory | Entered Lower Caves 12225 | -6/Lower Caves | Attracted the attention of an 0b10 checkpoint 12258 | -6/Lower Caves | Lost 3 parts (2n1u) 12678 | -6/Lower Caves | Spotted B-75 Beast 12803 | -6/Lower Caves | Identified exit to Lower Caves 13223 | -6/Lower Caves | Learned Factory emergency access door positions 13796 | -6/Lower Caves | Entered another Lower Caves area 13871 | -6/Lower Caves | Ambushed by wild Derelicts 13941 | -6/Lower Caves | Lost 4 parts (2u2w) 14075 | -6/Lower Caves | Lost 5 parts (1p2n1u1w) 14179 | -6/Lower Caves | Attracted the attention of an 0b10 outpost 14186 | -6/Lower Caves | Core integrity fell below 50% 14207 | -6/Lower Caves | Core integrity fell below 20% 14209 | -6/Lower Caves | Destroyed by Y-64 Sentinel with KE Penetrator Last Messages --------------- 14192_ Hrd. Medium Armor Plating destroyed. 14194_ S-27 Virus destroyed. 14195_ Penetrated by Slug. 14198_ Carbon-fiber Leg destroyed. 14198_ Penetrated by Slug. 14198_ Imp. Cooling System destroyed. 14200_ Mace fries itself beyond repair. 14200_ Penetrated by Slug. 14200_ Hvy. Flak Cannon destroyed. 14201_ Disruptor Cannon severed. 14203_ Lgt. Angular Momentum Engine severed. 14203_ Critical hit (Burn: +37). 14203_ Penetrated by Slug. 14203_ Imp. Heat Sink destroyed. 14206_ Penetrated by Slug. 14207_ Imp. Targeting Computer destroyed. 14208_ C-30 ARC bursts open, deploying its payload. 14208_ G-67 Veteran unfolds itself. 14208_ G-50 Soldier unfolds itself. 14209_ Penetrated by Slug. Map ----- +----------------------------------------------------+ | ????????????????????????????????## #????????????? | | ???????????????????????????????? ????????????? | | ???????????????????????????????? #???????????? | | ?????????????????????????????????# ???######??? | | ??????????????????????????????????# ?### ???? | | ??????????????????????????????????# ## # ????? | | ???????????????????????????????????# # #????? | | ???????????????????????????????????# # #????# | | ?????????????????????????? ??????### ###### | | ????????????????????????? ##??## ! ## | | ????????????????????????? ## !! | | ?????????????????????##?# | | ?????????????????????? ? % | | ?????????????????????? ???#### | | ??????????????????????# ??????## % | | ??????????????????????# ???????### | | ????????????????????### ????????#### | | ????????????????????# ??###??##### ### | | ???????????????????## ### #### ## #### | | ??????????????????## bb #?# | | ????????????????# g #?# | | ??????????????????## ## g#### ## #?### | | ??????????????????# ?????# ##??## ###########???? | | ?????????????????????????# #????###?????????????? | | ??????????????????###//###l##????????????????????? | | ??????????????????+ g%@l#?????????????????????? | | ??????????????????# Y%#*#?????????????????????? | | ??????????????????#""""""# #?????????????????????? | | ??????????????????######?# #?????????????????????? | | ????????????????????????? #?????????????????????? | | ?????????????????????????###?????????????????????? | | ?????????????????????????????????????????????????? | | ?????????????????????????????????????????????????? | | ?????????????????????????????????????????????????? | | ?????????????????????????????????????????????????? | | ?????????????????????????????????????????????????? | | ?????????????????????????????????????????????????? | | ?????????????????????????????????????????????????? | | ?????????????????????????????????????????????????? | | ?????????????????????????????????????????????????? | | | | | | | | | | | | | | | | | | | | | +----------------------------------------------------+ Best States ------------- Heat Dissipation 64 Energy Generation 21 Energy Capacity 315 Matter Stores 300 Matter Capacity 300 Sight Range 20 Terrain Scan Density 10 Additional Mass Support 12 Armor Coverage 825 Resistance: KI 30 Resistance: TH 10 Core Shielding 20 Propulsion Shielding 33 Utility Shielding 66 Evasion (%) 40 Targeting Accuracy 6 Target Analysis 5 Core Analysis 6 Armor Integrity Analysis 30 Recoil Reduction 6 Matter Filtering 30 Kinecelleration 40 Relay Coupler Types 2 Relay Coupler Value 39 Authchip Count 1 Item Schematics ----------------- None Robot Schematics ------------------ M-13 Machinist | -10/Materials | Hacked Fabricated ------------ Nothing Alien Tech Used ----------------- None Achievements -------------- Assimilation Complete It Was An Accident, I Swear No Signal Challenges ------------ None Game ------ Seed ScanEnhancedBroadsword Manual? 0 Play Time 02:08:19 Cumulative 101.5 hours Start 2024.08.22 @ 09:30:48 End 2024.08.22 @ 15:37:27 Sessions 1 Manual Loads 0 Difficulty Rogue Special Mode None Game No. 88 Rogue 88 Adventurer 0 Explorer 0 Win Type - Total 0 Types 0/0/0/0/0/0/0/0/0 Lore% 48 Gallery% 56 Achievement% 44 Wizard Run 0 Options --------- Layout 2 ASCII 0 Keyboard 1 Movement Vi Keybinds 0 Fullscreen 1 Font 32/SmallcapsGlow Map View 77x44 Zoom Use 0% Tactical HUD 1 Map Filters NONE Filters NONE Steam 1 RUN: 2646d1c0-c925-4398-9805-038ad2fb625d